bitfinex-derivatives/quotes_SOLF0:USTF0_20220110
["timestamp","ask_amount","ask_price","bid_price","bid_amount"]
[1641846880796,15.8671104,133.35,133.31,27.66479]
[1641846880995,77.7191,133.39,133.31,27.66479]
[1641846881197,77.7191,133.39,133.33,20.0]
[1641846881596,4.0,133.38,133.32,6.12631075]
[1641846881796,77.7191,133.39,133.34,4.25231075]
[1641846882195,77.7191,133.39,133.33,4.25231075]
[1641846882396,4.0,133.37,133.33,4.25231075]
[1641846882996,4.0,133.36,133.33,4.25231075]
[1641846883197,4.0,133.36,133.27,27.66479]
[1641846883198,4.0,133.35,133.28,24.25231075]
[1641846883396,4.0,133.36,133.3,20.0]
[1641846883798,4.0,133.35,133.3,20.0]
[1641846883997,4.0,133.35,133.31,4.25231075]
[1641846884200,4.0,133.34,133.31,4.25231075]
[1641846884398,4.0,133.34,133.29,1.075e-05]
[1641846884798,4.0,133.35,133.26,20.0]
[1641846884998,4.0,133.35,133.28,20.0]
[1641846885198,4.0,133.34,133.28,20.0]
[1641846885599,4.0,133.34,133.26,21.875]
[1641846885798,4.0,133.34,133.29,4.24896211]
[1641846886199,4.0,133.34,133.27,4.24896211]
[1641846886401,4.0,133.34,133.28,1.875]
[1641846886799,4.0,133.33,133.28,1.875]
[1641846886999,4.0,133.33,133.29,4.24896211]
[1641846887200,4.0,133.31,133.29,4.24896211]
[1641846887400,4.0,133.32,133.26,1.875]
[1641846887601,4.0,133.29,133.26,1.875]
[1641846887801,4.0,133.32,133.25,27.66479]
[1641846888404,4.0,133.3,133.25,27.66479]
[1641846888604,4.0,133.31,133.26,4.249681]
[1641846888804,4.0,133.29,133.26,4.249681]
[1641846889007,4.0,133.29,133.23,1.875]
[1641846889205,4.0,133.28,133.22,27.66479]
[1641846889404,6.00063876,133.32,133.22,27.66479]
[1641846889605,4.0,133.29,133.22,27.66479]
[1641846889905,6.00063876,133.32,133.23,20.0]
[1641846889906,4.0,133.32,133.23,20.0]
[1641846890107,27.66479,133.34,133.23,20.0]
[1641846890108,4.0,133.33,133.23,20.0]
[1641846890305,4.0,133.33,133.24,5.83854759]
[1641846890707,4.0,133.32,133.24,5.83854759]
[1641846890909,27.66479,133.31,133.25,3.96354759]
[1641846891406,27.66479,133.31,133.25,23.96354759]
[1641846892108,27.66479,133.31,133.26,3.96354759]
[1641846892310,27.66479,133.34,133.26,5.83854759]
[1641846892509,77.7054,133.37,133.26,5.83854759]
[1641846892709,73.7054,133.37,133.27,20.0]
[1641846892911,77.7054,133.37,133.28,29.53979]
[1641846893109,77.7054,133.37,133.28,49.53979]
[1641846893312,4.0,133.35,133.29,3.96354759]
[1641846893508,4.0,133.3,133.29,3.96354759]
[1641846893910,4.0,133.33,133.29,3.96354759]
[1641846894310,75.58862636,133.38,133.27,3.96354759]
[1641846894511,4.0,133.31,133.27,3.96354759]
[1641846894710,4.0,133.31,133.24,3.96354759]
[1641846895211,4.0,133.32,133.24,23.96354759]
[1641846895409,4.0,133.32,133.25,1.875]
[1641846895611,72.0768,133.32,133.25,1.875]
[1641846895811,68.0768,133.32,133.25,1.875]
[1641846896011,4.24990859,133.31,133.26,3.96354759]
[1641846896412,4.24990859,133.31,133.26,23.96354759]
[1641846896713,4.24990859,133.31,133.3,20.0]
[1641846896911,4.24990859,133.31,133.3,47.66479]
[1641846897310,4.24990859,133.35,133.3,51.62833759]
[1641846897711,4.24990859,133.36,133.31,3.96354759]
[1641846898513,8.24990859,133.36,133.31,3.96354759]
[1641846898711,4.24990859,133.36,133.31,3.96354759]
[1641846899513,8.24990859,133.37,133.31,3.96354759]
[1641846900014,4.24990859,133.36,133.31,3.96354759]
[1641846900414,4.24990859,133.38,133.31,3.96354759]
[1641846900616,4.24990859,133.38,133.32,1.874]
[1641846901016,4.24990859,133.38,133.33,27.66479]
[1641846901217,4.24990859,133.38,133.35,20.0]
[1641846901421,4.24990859,133.39,133.35,20.0]
[1641846901722,4.24990859,133.39,133.36,3.96354759]
[1641846902523,4.24990859,133.39,133.38,20.0]
[1641846902719,43.5319004,133.43,133.38,20.0]
[1641846902720,4.24990859,133.42,133.38,20.0]
[1641846902921,4.24990859,133.42,133.38,47.66479]
[1641846903322,4.24990859,133.42,133.39,3.96354759]
[1641846904527,4.24990859,133.42,133.41,20.0]
[1641846904822,4.24990859,133.42,133.4,1.873]
[1641846905022,4.24990859,133.42,133.39,1.873]
[1641846905423,4.24990859,133.42,133.4,3.95999399]
[1641846906024,4.24990859,133.42,133.39,1.873]
[1641846906224,4.24990859,133.42,133.38,20.0]
[1641846906628,4.0,133.4,133.36,1.873]
[1641846906828,4.0,133.41,133.34,9.07342967]
[1641846907027,4.0,133.41,133.34,1.874]
[1641846907229,4.0,133.36,133.35,3.96157314]
[1641846907429,4.0,133.36,133.32,1.874]
[1641846907629,4.0,133.42,133.31,20.0]
[1641846908029,15.8671104,133.41,133.32,1.874]
[1641846908230,15.8671104,133.41,133.33,20.0]
[1641846908629,4.24689815,133.4,133.34,3.92137019]
[1641846908830,4.24689815,133.4,133.38,20.0]
[1641846909230,4.24689815,133.4,133.37,1.874]
[1641846909630,4.24689815,133.41,133.38,3.92137019]
[1641846910029,4.24689815,133.41,133.37,1.874]
[1641846910030,4.24689815,133.41,133.34,49.53879]
[1641846910230,4.24689815,133.41,133.34,27.66479]
[1641846910432,8.24689815,133.42,133.35,3.9218716]
[1641846910631,4.24689815,133.42,133.35,3.9218716]
[1641846910931,4.24689815,133.41,133.35,3.9218716]
[1641846911132,4.24689815,133.41,133.35,5.7958716]
[1641846911331,2.7056346,133.41,133.35,5.7958716]
[1641846911531,2.7056346,133.41,133.35,3.9218716]
[1641846912037,4.24689815,133.4,133.35,3.9218716]
[1641846912232,4.24689815,133.4,133.35,5.7958716]
[1641846912831,4.24689815,133.4,133.36,3.9218716]
[1641846913431,8.24689815,133.41,133.36,3.9218716]
[1641846913833,4.0,133.39,133.36,3.9218716]
[1641846914132,4.24689815,133.4,133.31,27.66479]
[1641846914133,4.24689815,133.4,133.31,47.66479]
[1641846914334,4.24689815,133.38,133.32,1.874]
[1641846914534,4.24689815,133.38,133.31,49.53879]
[1641846914734,4.0,133.38,133.31,49.53879]
[1641846914934,23.15373388,133.39,133.31,49.53879]
[1641846915132,23.15373388,133.39,133.31,29.53879]
[1641846915133,4.0,133.37,133.31,29.53879]
[1641846915332,4.0,133.37,133.32,2.30630799]
[1641846915732,4.24775815,133.36,133.32,22.30630799]
[1641846915933,4.24775815,133.36,133.32,4.18030799]
[1641846916135,4.24775815,133.36,133.33,2.30630799]
[1641846916334,4.24775815,133.38,133.33,2.30630799]
[1641846916733,4.24775815,133.35,133.33,2.30630799]
[1641846917633,23.40149553,133.39,133.34,1.874]
[1641846918235,23.40149553,133.39,133.33,1.874]
[1641846918934,27.40149553,133.39,133.33,1.874]
[1641846919136,23.40149553,133.39,133.33,29.53879]
[1641846919334,4.24775815,133.38,133.33,1.874]
[1641846920336,4.24775815,133.38,133.32,21.874]
[1641846920737,4.24775815,133.38,133.33,2.3062705]
[1641846921338,8.24775815,133.38,133.33,2.3062705]
[1641846921536,4.0,133.34,133.33,2.3062705]
[1641846921737,4.0,133.34,133.31,27.66479]
[1641846922343,4.24775815,133.33,133.31,27.66479]
[1641846923342,39.26984151,133.36,133.31,27.66479]
[1641846923742,4.24775815,133.35,133.31,27.66479]
[1641846924846,4.24775815,133.36,133.31,27.66479]
[1641846925843,4.24775815,133.36,133.31,47.66479]
[1641846926044,2.71333583,133.35,133.32,4.18008626]
[1641846926744,43.5319004,133.37,133.33,2.30608626]
[1641846926745,4.24775815,133.34,133.33,2.30608626]
[1641846926944,4.24775815,133.34,133.33,22.30608626]
[1641846927546,4.24775815,133.38,133.33,22.30608626]
[1641846927946,4.24775815,133.38,133.34,2.30608626]
[1641846928148,4.24775815,133.38,133.35,1.874]
[1641846928350,4.24775815,133.38,133.34,4.18008626]
[1641846928549,4.24775815,133.38,133.34,1.874]
[1641846928951,4.24775815,133.38,133.35,2.305412]
[1641846929349,4.24775815,133.38,133.36,20.0]
[1641846929549,5.815e-05,133.38,133.36,20.0]
[1641846929750,15.8671104,133.4,133.37,5.99826909]
[1641846929949,15.8671104,133.4,133.37,10.17768109]
[1641846930351,15.8671104,133.4,133.39,20.0]
[1641846930550,2.71328482,133.42,133.39,20.0]
[1641846930950,2.71328482,133.42,133.37,1.874]
[1641846931151,4.24573752,133.41,133.36,20.0]
[1641846931350,4.24573752,133.41,133.36,21.874]
[1641846931651,4.24573752,133.41,133.37,3.19638361]
[1641846932051,4.24573752,133.41,133.39,20.0]
[1641846932250,20.11284792,133.43,133.39,24.0]
[1641846932449,20.11284792,133.43,133.42,20.0]
[1641846932649,15.8671104,133.43,133.42,20.0]
[1641846933152,15.8671104,133.47,133.42,23.19638361]
[1641846933549,15.8671104,133.47,133.42,3.19638361]
[1641846933951,15.8671104,133.47,133.41,3.19638361]
[1641846934252,15.8671104,133.47,133.42,20.0]
[1641846934451,15.8671104,133.47,133.46,20.0]
[1641846934851,15.8671104,133.47,133.43,21.873]
[1641846935253,15.8671104,133.47,133.43,20.0]
[1641846935454,15.8671104,133.47,133.44,3.19466102]
[1641846936655,18.57639021,133.49,133.44,3.19466102]
[1641846937256,18.57639021,133.49,133.44,30.85945102]
[1641846937456,15.8671104,133.5,133.48,4.0]
[1641846937657,36.36444109,133.53,133.49,24.0]
[1641846937859,1.37342215,133.53,133.52,20.0]
[1641846938060,1.37342215,133.53,133.52,24.0]
[1641846938259,63.26061175,133.57,133.52,23.19466102]
[1641846938458,4.0,133.63,133.55,20.0]
[1641846938657,4.0,133.63,133.56,1.87]
[1641846939060,4.0,133.64,133.57,3.19466102]
[1641846939358,4.0,133.65,133.6,20.0]
[1641846940562,4.0,133.65,133.61,3.18952367]
[1641846940764,4.0,133.64,133.61,3.18952367]
[1641846941460,4.0,133.64,133.59,3.18952367]
[1641846941662,4.0,133.63,133.59,3.18952367]
[1641846941860,27.66479,133.66,133.59,3.18952367]
[1641846941861,4.0,133.61,133.59,3.18952367]
[1641846942061,4.0,133.61,133.58,3.18952367]
[1641846942462,4.0,133.61,133.57,27.66479]
[1641846942463,4.0,133.61,133.55,27.66479]
[1641846942863,4.0,133.61,133.56,3.19063772]
[1641846943070,4.0,133.62,133.56,3.19063772]
[1641846943268,27.66479,133.66,133.56,3.19063772]
[1641846943465,76.41702977,133.78,133.65,20.0]
[1641846943666,4.0,133.74,133.65,20.0]
[1641846944066,4.0,133.73,133.66,3.19063772]
[1641846944465,4.0,133.72,133.66,3.19063772]
[1641846945267,4.0,133.73,133.66,3.19063772]
[1641846945567,27.66479,133.72,133.66,3.19063772]
[1641846946167,31.66479,133.72,133.66,3.19063772]
[1641846946467,4.0,133.67,133.59,20.0]
[1641846946669,4.0,133.65,133.58,1.869]
[1641846947068,4.0,133.65,133.57,1.871]
[1641846947468,27.66479,133.65,133.57,1.871]
[1641846947767,4.23753905,133.64,133.61,20.0]
[1641846947967,4.23753905,133.64,133.62,1.87]
[1641846948370,8.23753905,133.71,133.62,4.42010286]
[1641846948568,4.23753905,133.71,133.62,4.42010286]
[1641846948768,4.0,133.7,133.62,4.42010286]
[1641846948970,4.0,133.69,133.62,2.55010286]
[1641846949169,8.23773749,133.69,133.63,2.55010286]
[1641846949669,4.0,133.67,133.6,2.55010286]
[1641846949870,8.23773749,133.68,133.6,2.55010286]
[1641846950070,4.23773749,133.66,133.61,1.87]
[1641846950471,4.23773749,133.66,133.6,4.42010286]
[1641846950672,4.0,133.68,133.62,2.55010286]
[1641846950872,8.23773749,133.69,133.62,2.55010286]
[1641846951073,4.23773749,133.69,133.62,2.55010286]
[1641846951274,4.23773749,133.67,133.62,1.87]
[1641846951473,4.23773749,133.67,133.62,29.53479]
[1641846951675,4.23773749,133.68,133.63,2.55010286]
[1641846952374,4.23773749,133.69,133.63,2.55010286]
[1641846952774,4.0,133.74,133.68,20.0]
[1641846952973,4.0,133.75,133.68,20.0]
[1641846953175,4.0,133.78,133.71,20.0]
[1641846953379,4.0,133.78,133.74,27.66479]
[1641846953774,4.0,133.79,133.74,27.66479]
[1641846954175,4.0,133.8,133.74,27.66479]
[1641846954376,4.23431067,133.78,133.75,4.04313311]
[1641846954576,4.23431067,133.78,133.77,20.0]
[1641846954776,4.0,133.85,133.77,20.0]
[1641846954979,4.0,133.84,133.77,20.0]
[1641846955177,4.0,133.83,133.77,20.0]
[1641846955378,4.0,133.83,133.78,27.66479]
[1641846956179,4.23319855,133.82,133.78,27.66479]
[1641846957579,8.23319855,133.83,133.78,27.66479]
[1641846957980,4.23319855,133.83,133.78,27.66479]
[1641846958179,4.23319855,133.82,133.78,27.66479]
[1641846958580,4.23319855,133.83,133.78,27.66479]
[1641846958782,8.23319855,133.83,133.78,27.66479]
[1641846958980,33.63943781,133.9,133.78,27.66479]
[1641846958981,21.34730273,133.84,133.78,27.66479]
[1641846959382,21.34730273,133.84,133.83,27.66479]
[1641846959582,4.23319855,133.85,133.83,27.66479]
[1641846959982,8.23319855,133.86,133.83,27.66479]
[1641846960583,4.23319855,133.85,133.84,4.23188698]
[1641846960783,8.23319855,133.85,133.84,4.23188698]
[1641846960990,4.0,133.86,133.81,4.23188698]
[1641846961589,8.23319855,133.85,133.79,4.23188698]
[1641846962087,4.23319855,133.84,133.79,24.23188698]
[1641846962286,4.23319855,133.84,133.79,4.23188698]
[1641846962487,9.97529865,133.89,133.83,20.0]
[1641846962788,11.1676743,133.94,133.83,20.0]
[1641846962987,4.0,133.92,133.83,20.0]
[1641846963187,4.0,133.93,133.83,20.0]
[1641846963388,4.0,133.9,133.83,20.0]
[1641846963689,4.0,133.92,133.86,27.66479]
[1641846963887,2.91522755,133.89,133.86,27.66479]
[1641846964688,2.91522755,133.91,133.87,4.23033563]
[1641846965088,4.0,133.92,133.87,4.23033563]
[1641846965390,4.0,133.89,133.87,4.23033563]
[1641846965589,4.0,133.88,133.84,27.66479]
[1641846965789,4.0,133.85,133.78,16.97984718]
[1641846965991,4.0,133.88,133.78,16.97984718]
[1641846966191,4.0,133.88,133.79,7.84638867]
[1641846966489,4.0,133.84,133.78,11.0]
[1641846966691,4.0,133.87,133.78,11.0]
[1641846966990,7.1687634,133.92,133.78,12.867]
[1641846967290,4.17105013,133.86,133.79,4.23130758]
[1641846967590,4.0,133.89,133.81,47.66479]
[1641846967789,4.0,133.88,133.81,27.66479]
[1641846968189,8.17105013,133.88,133.82,4.23130758]
[1641846968390,4.17105013,133.88,133.82,4.23130758]
[1641846968589,4.17105013,133.87,133.82,4.23130758]
[1641846968792,4.17105013,133.87,133.83,20.0]
[1641846968990,4.0,133.93,133.83,20.0]
[1641846969190,9.9718559,133.97,133.86,20.0]
[1641846969390,3.76093842,133.92,133.89,20.0]
[1641846969590,3.76093842,133.92,133.91,27.66479]
[1641846969990,27.66479,134.01,133.91,31.66479]
[1641846969991,4.0,134.01,133.91,31.66479]
[1641846970191,4.0,134.01,133.95,20.0]
[1641846970393,4.0,134.01,133.92,47.72463922]
[1641846970592,4.0,134.0,133.92,41.75135797]
[1641846970892,4.0,133.97,133.91,27.66479]
[1641846971093,4.0,134.0,133.91,27.66479]
[1641846971297,2.63111954,133.96,133.92,4.22812791]
[1641846971691,4.0,134.01,133.95,47.66479]
[1641846972092,2.63111954,134.02,133.95,47.66479]
[1641846972292,2.63111954,134.0,133.99,20.0]
[1641846972692,2.63111954,134.06,133.99,43.88422663]
[1641846972892,2.63111954,134.06,134.02,20.0]
[1641846973091,2.63111954,134.1,134.02,20.0]
[1641846973492,2.63111954,134.1,134.03,4.22812791]
[1641846973693,4.0,134.09,134.03,31.89291791]
[1641846973894,6.63111954,134.1,134.03,31.89291791]
[1641846974092,34.29590954,134.12,134.03,31.89291791]
[1641846974293,30.29590954,134.12,134.03,31.89291791]
[1641846974492,6.63111954,134.11,134.04,4.22812791]
[1641846974691,2.63111954,134.11,134.04,4.22812791]
[1641846974892,2.63111954,134.1,134.04,4.22812791]
[1641846975092,2.63111954,134.1,134.05,1.864]
[1641846975494,4.0,134.13,134.05,1.864]
[1641846975495,2.63111954,134.12,134.05,1.864]
[1641846975892,2.63111954,134.09,134.06,4.22812791]
[1641846976594,2.63111954,134.09,134.05,4.22812791]
[1641846976794,2.63111954,134.12,134.05,4.22812791]
[1641846976995,2.63111954,134.08,134.05,4.22812791]
[1641846977594,2.63111954,134.12,134.05,4.22812791]
[1641846977794,2.63111954,134.12,134.04,4.22812791]
[1641846979397,4.0,134.11,134.04,4.22812791]
[1641846979897,2.63111954,134.1,134.04,4.22812791]
[1641846980198,6.63111954,134.1,134.04,4.22812791]
[1641846980497,4.0,134.05,134.01,27.66479]
[1641846980697,4.0,134.04,134.01,27.66479]
[1641846980897,4.0,134.03,133.96,21.864]
[1641846981097,4.0,134.03,133.93,21.865]
[1641846981298,4.0,134.01,133.93,21.865]
[1641846981497,4.0,134.02,133.93,20.0]
[1641846981699,31.66479,134.02,133.94,27.66479]
[1641846981898,3.41931802,134.0,133.94,31.89185776]
[1641846982301,3.41931802,134.01,133.95,4.22706776]
[1641846983102,3.41931802,134.01,133.95,19.88652401]
[1641846983504,3.41931802,134.01,133.95,21.75152401]
[1641846983904,27.66479,134.02,133.96,39.88652401]
[1641846984505,27.66479,134.02,133.97,19.88652401]
[1641846984705,27.66479,134.02,133.99,20.0]
[1641846984905,4.0,134.09,133.99,20.0]
[1641846985106,72.1661,134.12,134.0,1.864]
[1641846985406,4.0,134.07,134.0,6.09106776]
[1641846985605,27.66479,134.05,134.0,4.22706776]
[1641846986205,3.0516111,134.04,133.97,4.22706776]
[1641846986407,3.0516111,134.04,133.98,1.865]
[1641846987207,3.0516111,134.04,133.99,4.22706776]
[1641846987908,3.0516111,134.04,133.93,20.0]
[1641846987909,4.0,134.0,133.96,4.18911763]
[1641846988408,9.02031621,134.04,133.96,4.18911763]
[1641846988608,4.0,134.01,133.96,4.18911763]
[1641846988808,4.0,133.99,133.92,27.66479]
[1641846989008,4.0,134.0,133.92,27.66479]
[1641846989208,4.0,133.99,133.92,27.66479]
[1641846989410,4.0,133.96,133.93,3.30185854]
[1641846989612,31.66479,133.97,133.93,5.854e-05]
[1641846989810,4.22739693,133.95,133.93,5.854e-05]
[1641846990210,27.66479,133.97,133.9,11.28]
[1641846990812,27.66479,133.97,133.92,20.0]
[1641846991012,67.058,134.05,133.92,20.0]
[1641846991211,4.22727109,133.96,133.93,1.866]
[1641846991410,4.22727109,133.96,133.92,20.0]
[1641846991610,31.66479,134.02,133.94,2.60837032]
[1641846991810,27.66479,134.02,133.94,2.60837032]
[1641846992012,27.66479,134.02,133.95,20.0]
[1641846992213,4.22727109,134.01,133.95,21.865]
[1641846992413,4.22727109,134.01,133.95,25.865]
[1641846992613,4.22727109,134.01,133.96,2.60837032]
[1641846992813,4.22727109,134.01,133.97,1.865]
[1641846993514,4.22727109,134.01,133.98,2.60837032]
[1641846994317,4.22727109,134.01,133.96,2.60837032]
[1641846995316,4.22727109,134.01,133.98,20.0]
[1641846995515,15.52466206,134.11,133.98,25.97097555]
[1641846995716,31.66479,134.07,133.99,32.13816032]
[1641846996218,27.66479,134.07,133.99,29.52979]
[1641846996717,4.22516591,134.06,134.0,3.07130737]
[1641846998619,8.22516591,134.06,134.0,3.07130737]
[1641846998919,4.22516591,134.06,134.0,3.07130737]
[1641847001330,4.22516591,134.06,134.03,20.0]
[1641847001723,4.22516591,134.06,134.05,27.66479]
[1641847001924,4.22516591,134.06,134.03,25.96875078]
[1641847001925,4.22516591,134.1,134.04,3.07130737]
[1641847002323,8.22516591,134.11,134.04,3.07130737]
[1641847002724,4.22516591,134.11,134.04,3.07130737]
[1641847002924,4.22516591,134.1,134.04,3.07130737]
[1641847003624,8.22516591,134.1,134.04,3.07130737]
[1641847003824,27.66479,134.09,134.03,3.07130737]
[1641847004425,4.22516591,134.08,134.02,3.07130737]
[1641847005127,4.22516591,134.08,134.02,9.04026768]
[1641847005527,4.22516591,134.08,134.04,20.0]
[1641847006130,4.22516591,134.08,134.05,3.07130737]
[1641847007431,27.66479,134.12,134.05,3.07130737]
[1641847007432,8.22516591,134.11,134.05,3.07130737]
[1641847007832,27.66479,134.09,134.05,3.07130737]
[1641847008035,27.66479,134.09,134.02,3.07130737]
[1641847008432,4.22516591,134.08,134.02,3.07130737]
[1641847009034,5.591e-05,134.09,134.02,3.07130737]
[1641847009233,43.18945206,134.12,134.02,4.93530737]
[1641847009433,43.18945206,134.12,134.03,5.96861571]
[1641847009733,27.66479,134.12,134.03,33.63340571]
[1641847010236,4.04029276,134.11,134.04,4.22370264]
[1641847010835,4.04029276,134.11,134.04,6.77842852]
[1641847011236,8.04029276,134.11,134.04,6.77842852]
[1641847011438,4.0,134.1,134.05,4.22370264]
[1641847011638,4.0,134.08,134.05,4.22370264]
[1641847011839,4.0,134.08,134.03,27.66479]
[1641847012239,4.04029276,134.09,134.04,20.0]
[1641847012439,55.32958,134.12,134.04,20.0]
[1641847012639,55.32958,134.12,134.03,29.52879]
[1641847013139,4.22394944,134.11,134.04,3.56220791]
[1641847013940,8.22394944,134.11,134.04,3.56220791]
[1641847014540,4.22394944,134.1,134.04,3.56220791]
[1641847014741,8.22394944,134.1,134.04,3.56220791]
[1641847014940,4.22394944,134.1,134.04,3.56220791]
[1641847015142,4.22394944,134.1,134.07,20.0]
[1641847015443,15.52466206,134.14,134.07,20.0]
[1641847015841,4.22260181,134.13,134.08,6.11298491]
[1641847016342,4.22260181,134.16,134.09,3.56220791]
[1641847016744,4.0,134.15,134.09,3.56220791]
[1641847016942,4.0,134.15,134.05,15.52466206]
[1641847017143,4.0,134.1,134.05,15.52466206]
[1641847017642,4.0,134.1,134.02,15.52466206]
[1641847017843,27.66479,134.08,134.02,15.52466206]
[1641847018243,4.0,134.07,134.03,3.49332743]
[1641847018445,27.66479,134.08,134.03,3.49332743]
[1641847019044,4.22421748,134.07,134.03,3.49332743]
[1641847019246,4.22421748,134.07,134.04,20.0]
[1641847019649,4.22421748,134.09,134.04,20.0]
[1641847019846,4.22421748,134.09,134.02,5.35732743]
[1641847020045,4.0,134.11,134.05,3.49332743]
[1641847020448,4.0,134.11,134.04,2.54979217]
[1641847020847,33.62924459,134.13,134.05,3.49332743]
[1641847020848,4.22386965,134.1,134.05,3.49332743]
[1641847021447,4.22386965,134.12,134.05,3.49332743]
[1641847021849,27.66479,134.15,134.07,27.66479]
[1641847022348,4.2224956,134.14,134.07,27.66479]
[1641847022548,4.0,134.08,134.02,51.51955948]
[1641847022748,5.96762316,134.06,133.98,38.32736816]
[1641847023150,4.0,134.07,133.98,38.32736816]
[1641847023347,4.0,134.06,133.98,38.32736816]
[1641847023548,72.9059,134.09,134.0,41.96692241]
[1641847023749,4.22493719,134.05,134.0,41.96692241]
[1641847023949,31.88972719,134.05,134.0,41.96692241]
[1641847024149,27.66479,134.05,134.01,2.04732347]
[1641847025050,27.66479,134.05,133.97,2.04732347]
[1641847025451,4.22518635,134.04,133.97,2.04732347]
[1641847026352,4.22518635,134.04,133.96,2.04732347]
[1641847026754,4.0,134.02,133.96,2.04732347]
[1641847026954,4.0,134.01,133.96,2.04732347]
[1641847027157,4.0,134.0,133.96,2.04732347]
[1641847027554,4.0,133.99,133.96,2.04732347]
[1641847027754,5.96855046,134.04,133.95,6.04732347]
[1641847027955,27.66479,134.05,133.98,20.0]
[1641847028756,27.66479,134.05,133.99,2.04732347]
[1641847030159,27.66479,134.05,133.99,12.01747441]
[1641847030357,27.66479,134.09,133.99,12.01747441]
[1641847030358,27.66479,134.09,133.99,8.01747441]
[1641847030559,27.66479,134.09,134.0,1.865]
[1641847030760,27.66479,134.09,134.03,20.0]
[1641847031259,27.66479,134.09,134.04,2.04732347]
[1641847032060,27.66479,134.05,134.04,2.04732347]
[1641847032459,27.66479,134.05,134.03,2.04732347]
[1641847032862,27.66479,134.05,133.99,2.04732347]
[1641847033063,27.66479,134.09,134.0,24.0]
[1641847033264,27.66479,134.09,134.0,20.0]
[1641847033463,27.66479,134.09,134.01,1.865]
[1641847033763,27.66479,134.09,134.01,2.04732347]
[1641847033962,27.66479,134.09,134.01,29.71211347]
[1641847034364,27.66479,134.09,134.01,49.71211347]
[1641847034565,27.66479,134.09,134.02,2.04732347]
[1641847035266,4.0,134.08,134.02,2.04732347]
[1641847035668,27.66479,134.09,134.02,2.04732347]
[1641847036269,7.1551132,134.17,134.04,24.0]
[1641847036469,5.96356468,134.15,134.05,4.0]
[1641847036669,5.96356468,134.15,134.07,24.0]
[1641847036872,4.22187335,134.16,134.07,24.0]
[1641847037071,9.96176378,134.19,134.08,6.04732347]
[1641847037269,9.96176378,134.19,134.1,24.0]
[1641847037270,5.96176378,134.19,134.1,24.0]
[1641847037470,4.22163052,134.18,134.1,20.0]
[1641847037971,27.66479,134.17,134.11,2.04732347]
[1641847038371,27.66479,134.17,134.11,20.0]
[1641847038770,27.66479,134.17,134.12,2.04732347]
[1641847039173,4.0,134.23,134.14,20.0]
[1641847039372,12.58197507,134.24,134.14,24.0]
[1641847039574,4.0,134.23,134.14,20.0]
[1641847039772,4.22089466,134.22,134.15,2.04732347]
[1641847040175,8.22089466,134.22,134.15,2.04732347]
[1641847040374,4.0,134.21,134.15,2.04732347]
[1641847040574,4.0,134.2,134.14,2.04732347]
[1641847040774,8.22089466,134.22,134.14,2.04732347]
[1641847040976,4.22089466,134.2,134.16,2.04732347]
[1641847041379,4.22089466,134.2,134.13,2.04732347]
[1641847042176,8.22089466,134.21,134.13,2.04732347]
[1641847042378,4.22089466,134.21,134.13,2.04732347]
[1641847042578,4.22089466,134.21,134.13,8.01135333]
[1641847042778,27.66479,134.25,134.18,20.0]
[1641847043179,27.66479,134.25,134.19,2.04732347]
[1641847043380,27.66479,134.25,134.2,1.862]
[1641847043980,27.66479,134.25,134.21,2.04732347]
[1641847044782,27.66479,134.25,134.2,2.04732347]
[1641847045483,4.0,134.32,134.22,20.0]
[1641847045682,4.0,134.32,134.22,24.0]
[1641847045883,4.0,134.31,134.21,1.862]
[1641847046184,4.0,134.29,134.23,2.04732347]
[1641847046384,8.21841777,134.31,134.23,2.04732347]
[1641847046583,4.21841777,134.28,134.22,2.04732347]
[1641847047084,4.21841777,134.3,134.22,2.04732347]
[1641847047283,4.21841777,134.3,134.22,22.04732347]
[1641847047483,4.21841777,134.3,134.22,23.90932347]